Cogmind - Beta 10.1 @@@ ROGUE MODE // 2020.10.28 @ 23:23:32 Player: Shamgod Result: Core destroyed Performance ------------- Evolutions (3) 1500 Regions Visited (7) 1400 Robots Destroyed (74) 370 Value Destroyed (2827) 2827 Prototype IDs (0) 0 Alien Tech Used (0) 0 Bonus (345) 345 TOTAL SCORE: 6442 Bonus ------- Follower Combat Kills 145 Entered Garrisons 200 Cogmind --------- Core Integrity 0/700 Matter 63/300 Energy 230/230 System Corruption 0% Temperature Cool (548) Movement Treading (280) Ox6 Location -7/Garrison Parts ------- > --- POWER (2) -------- Light Nuclear Core Micro Fission Core > --- PROPULSION (3) --- Light Treads > --- UTILITY (5) ------ Humpback Hardened Heavy Armor Plating > --- WEAPON (3) ------- Advanced Assault Cannon Advanced Assault Cannon > --- INVENTORY (24) --- Light Nuclear Core Light Nuclear Core Light Treads Wheel Wheel Compact Wheel Improved Heat Sink Terrain Scanner Actuator Array Hardened Heavy Armor Plating Improved Light Armor Plating Improved Light Armor Plating EM Pulse Cannon Shotgun Shotgun Minigun Flak Gun Advanced Assault Cannon Rocket Launcher Ripper Peak State ------------ > --- POWER ------------ Improved Deuterium Engine Micro Fission Core > --- PROPULSION ------- Titanium Leg Wheel Compact Wheel > --- UTILITY ---------- Humpback Hardened Heavy Armor Plating Improved Light Armor Plating > --- WEAPON ----------- Minigun Advanced Assault Cannon Advanced Assault Cannon > --- INVENTORY -------- Light Nuclear Core Light Treads Light Treads Wheel Wheel Improved Heat Sink Terrain Scanner Actuator Array Propulsion Shielding Hardened Heavy Armor Plating Hardened Heavy Armor Plating Improved Light Armor Plating EM Pulse Cannon Shotgun Shotgun Flak Gun Advanced Assault Cannon Advanced Assault Cannon Grenade Launcher Rocket Launcher Ripper [Rating: 45] Favorites ----------- Power Ion Engine Engine Ion Engine Power Core Light Nuclear Core Propulsion Light Treads Treads Light Treads Leg Carbon-fiber Leg Wheel Wheel Utility Large Storage Unit Device Terrain Scanner Storage Large Storage Unit Processor Enhanced Optical Array Protection Improved Light Armor Plating Weapon Light Assault Rifle Energy Gun EM Pulse Gun Energy Cannon EM Pulse Cannon Ballistic Gun Light Assault Rifle Ballistic Cannon Advanced Assault Cannon Launcher Grenade Launcher Slashing Weapon Ripper Build | -11 -10 -10 -10 -9 -8 -7 -7 ------- Run | Scr Mat Min Exi Min Mat Fac Gar Slots Evolved 6 | . . . . . 4 2 . Power 1 | . . . . . . 1 . Propulsion 1 | . . . . . 1 . . Utility 3 | . . . . . 2 1 . Weapon 1 | . . . . . 1 . . Parts Attached 98 | 11 11 13 2 . 35 18 8 Power 14 | 2 2 2 . . 3 3 2 Engine 8 | 2 2 1 . . 2 1 . Core 6 | . . 1 . . 1 2 2 Reactor . | . . . . . . . . Propulsion 36 | 6 3 2 1 . 16 7 1 Treads 14 | 1 1 2 . . 6 3 1 Leg 7 | 2 . . . . 5 . . Wheel 15 | 3 2 . 1 . 5 4 . Hover . | . . . . . . . . Flight . | . . . . . . . . Utility 15 | 1 2 2 1 . 4 3 2 Device 1 | . . . . . 1 . . Storage 7 | 1 2 1 1 . 2 . . Processor 2 | . . 1 . . . 1 . Hackware . | . . . . . . . . Protection 5 | . . . . . 1 2 2 Artifact . | . . . . . . . . Weapon 33 | 2 4 7 . . 12 5 3 Energy Gun 10 | 2 2 2 . . 2 2 . Energy Cannon 1 | . . . . . 1 . . Ballistic Gun 14 | . 2 4 . . 7 1 . Ballistic Cannon 5 | . . . . . 1 2 2 Launcher 2 | . . 1 . . . . 1 Special Weapon . | . . . . . . . . Impact Weapon . | . . . . . . . . Slashing Weapon 1 | . . . . . 1 . . Piercing Weapon . | . . . . . . . . Special Melee Weapon . | . . . . . . . . Unidentified Prototypes . | . . . . . . . . Parts Lost 39 | . 5 7 . . 16 3 8 Power 7 | . 1 1 . . 3 1 1 Propulsion 9 | . 1 1 . . 5 . 2 Utility 4 | . . . . . 1 . 3 Weapon 19 | . 3 5 . . 7 2 2 Highest Loss Streak 6 | . 3 2 . . 6 3 5 Average Slot Usage (%) 89 | . 99 99 92 85 79 81 79 Engine 8 | . 13 3 14 14 6 1 5 Core 3 | . . 10 . . 1 12 8 Treads 14 | . 14 28 23 14 9 1 . Leg 4 | . . . . . 9 17 . Wheel 8 | . 13 . 4 14 6 4 22 Storage 20 | . 27 27 20 14 17 11 7 Protection 1 | . . . . . . 9 11 Energy Gun 6 | . 25 2 . . . 2 . Ballistic Gun 15 | . 2 25 28 28 19 5 5 Ballistic Cannon 2 | . . . . . . 9 16 Naked Turns . | . . . . . . . . Heaviest Build 190 | 13 41 42 87 87 181 190 135 Greatest Support 47 | 20 40 40 40 20 47 47 42 Greatest Overweight (x) 40 | 1 4 1 8 8 17 40 6 Average Overweight (x) 2 | . 2 . 2 5 4 4 2 Largest Inventory Capacity 44 | 6 16 16 24 24 44 44 24 Average Capacity 25 | 5 15 15 19 24 42 35 24 Most Carried 44 | 6 16 16 22 24 44 44 24 Average Carried 22 | 4 12 15 16 23 34 33 22 Final Capacity 44 | 6 16 16 24 24 44 24 24 Final Carried 44 | 6 16 16 22 24 44 24 21 Class Distribution -------------------- 45% | Mutant 34% | Hauler-Mutant 10% | Hauler-Tank 7% | Hauler-Gunner Dominant Class ---------------- Mutant | -10/Materials Mutant | -10/Mines Mutant | -10/Exiles Hauler-Mutant | -9/Mines Hauler-Mutant | -8/Materials Hauler-Tank | -7/Factory Hauler-Tank | -7/Garrison Resources | -11 -10 -10 -10 -9 -8 -7 -7 ----------- Run | Scr Mat Min Exi Min Mat Fac Gar Matter Collected 2807 | 244 446 198 . 32 1199 369 319 Remotely . | . . . . . . . . Salvage Created 2823 | 76 522 255 . 40 1255 356 319 Parts 147 | 2 23 22 . 1 64 22 13 Haulers Intercepted 4 | . 2 . . . 1 1 . Recyclers Shooed 4 | . . . . . 3 1 . Parts Field Recycled . | . . . . . . . . Retrieved Matter . | . . . . . . . . Parts Self-Destructed . | . . . . . . . . Prevented . | . . . . . . . . Kills | -11 -10 -10 -10 -9 -8 -7 -7 ------- Run | Scr Mat Min Exi Min Mat Fac Gar Combat Hostiles Destroyed 61 | . 9 9 . 1 28 5 9 Guns 44 | . 7 6 . 1 28 2 . Cannons 11 | . . . . . . 3 8 AOE 5 | . 1 3 . . . . 1 Classes Destroyed 12 | 1 5 . . . 5 1 . Worker 2 | . 1 . . . 1 . . Tunneler 1 | . . . . . 1 . . Hauler 4 | . 2 . . . 1 1 . Recycler 2 | 1 . . . . . 1 . Watcher 4 | . 2 . . . 2 . . Swarmer 10 | . 3 3 . . 4 . . Grunt 41 | . 6 6 . 1 18 1 9 Brawler 1 | . . . . . 1 . . Duelist 2 | . . . . . 2 . . Sentry 5 | . . . . . 2 3 . Hunter 1 | . . . . . 1 . . Programmer 1 | . . . . . . 1 . Best Kill Streak 6 | 1 3 3 . 1 6 1 3 Combat Bots Only 6 | . 3 3 . 1 6 1 3 Max Kills in Single Turn 2 | 1 1 2 . 1 2 1 1 Gunslinging 1 | . . . . . 1 . . Exploded 2 | . 1 2 . . . . 1 Melee . | . . . . . . . . Uniques/NPCs Destroyed . | . . . . . . . . Combat | -11 -10 -10 -10 -9 -8 -7 -7 -------- Run | Scr Mat Min Exi Min Mat Fac Gar Damage Taken 6738 | . 686 845 . 43 2770 1292 1102 Core 1306 | . 113 71 . 21 322 391 388 Absorbed by Shields . | . . . . . . . . Core Remaining (%) 53 | 100 . . . 18 41 . . Volleys Fired 267 | 2 58 34 . 6 111 31 25 Largest 3 | 2 2 2 . 2 3 3 3 Hottest 193 | 80 90 85 . 40 109 193 144 Shots Fired 597 | 4 115 60 . 12 259 80 67 Gun 495 | 4 115 58 . 12 254 37 15 Cannon 99 | . . . . . 5 43 51 Launcher 3 | . . 2 . . . . 1 Special . | . . . . . . . . Kinetic 441 | . 16 49 . 12 240 58 66 Thermal 78 | . 40 9 . . 14 15 . Explosive 3 | . . 2 . . . . 1 Electromagnetic 75 | 4 59 . . . 5 7 . Robot Hit Streak 16 | 4 12 16 . 5 13 6 6 Robot Miss Streak 9 | . 4 2 . 2 4 9 3 Penetration Max . | . . . . . . . . Secondary Targets 10 | . 2 3 . . 5 . . Max Gunslinging Chain 1 | . 1 1 . . 1 . . Shots Hit Robots 412 | 4 70 47 . 9 202 47 33 Core Hits 178 | 2 21 20 . 3 92 21 19 Critical Hits 3 | . . . . . 2 . 1 Critical Kills 1 | . . . . . 1 . . Critical Parts Destroyed 2 | . . . . . 1 . 1 Melee Attacks . | . . . . . . . . Impact . | . . . . . . . . Slashing . | . . . . . . . . Piercing . | . . . . . . . . Sneak Attacks . | . . . . . . . . Combat Hostiles . | . . . . . . . . Follow-up Attacks . | . . . . . . . . Damage Inflicted 6184 | 54 989 633 . 79 2670 962 797 Guns 4701 | 54 899 520 . 79 2622 397 130 Cannons 1178 | . . . . . 48 565 565 Explosions 305 | . 90 113 . . . . 102 Melee . | . . . . . . . . Ramming . | . . . . . . . . Kinetic 4390 | . 75 377 . 79 2487 677 695 Thermal 784 | . 339 143 . . 135 167 . Explosive 215 | . . 113 . . . . 102 Electromagnetic 795 | 54 575 . . . 48 118 . Impact . | . . . . . . . . Slashing . | . . . . . . . . Piercing . | . . . . . . . . Highest Corruption . | . . . . . . . . Average Corruption . | . . . . . . . . Corruption Purged . | . . . . . . . . Overload Shots . | . . . . . . . . Overflow Damage 48 | . 9 . . . . 39 . Projectiles 39 | . . . . . . 39 . Explosions 9 | . 9 . . . . . . Melee . | . . . . . . . . Knockbacks 5 | . . . . . . 2 3 Impact . | . . . . . . . . Kinetic 5 | . . . . . . 2 3 Secondary . | . . . . . . . . Self-Inflicted Damage 69 | . 55 2 . . . . 12 Shots 4 | . 2 1 . . . . 1 Rammed . | . . . . . . . . Targets Rammed . | . . . . . . . . Kicked . | . . . . . . . . Crushed . | . . . . . . . . Highest Temperature 764 | 36 394 297 . 12 119 762 764 Average Temperature 176 | 20 129 82 . 8 31 234 345 Received Heat Transfer 2514 | . 264 420 . 24 1152 312 342 Effects 91 | . 6 . . . . 35 50 Shutdowns 23 | . 1 . . . . 10 12 Energy Bleed 8 | . 4 . . . . 1 3 Interference 13 | . 1 . . . . 6 6 Matter Decay 7 | . . . . . . 2 5 Short Circuit 8 | . . . . . . 5 3 Damage (minor) 9 | . . . . . . 4 5 Damage (major) 17 | . . . . . . 4 13 Damage (core) 6 | . . . . . . 3 3 Siege Activations . | . . . . . . . . Robots Corrupted 1 | . 1 . . . . . . Combat Hostiles 1 | . 1 . . . . . . Parts Fried 4 | . 4 . . . . . . Impact Corruptions . | . . . . . . . . Robots Melted . | . . . . . . . . Combat Hostiles . | . . . . . . . . Parts Melted 1 | . 1 . . . . . . Heat Transferred 1772 | . 778 333 . . 300 361 . Parts Sabotaged . | . . . . . . . . Parts Stolen . | . . . . . . . . Parts Stripped . | . . . . . . . . Power Chain Reactions 2 | . 2 . . . . . . Missiles Intercepted . | . . . . . . . . Alert | -11 -10 -10 -10 -9 -8 -7 -7 ------- Run | Scr Mat Min Exi Min Mat Fac Gar Peak Influence 379 | 5 121 153 . 57 319 191 379 Initial 93 | . 3 30 . . . 93 72 Average 86 | 2 33 83 . 25 152 95 220 Maximum Alert Level 1 | . . . . . 1 . 1 Low Security (%) 88 | 100 100 100 . 100 66 100 40 Level 1 11 | . . . . . 33 . 59 Level 2 . | . . . . . . . . Level 3 . | . . . . . . . . Level 4 . | . . . . . . . . Level 5 . | . . . . . . . . High Security . | . . . . . . . . Max Security . | . . . . . . . . Squads Dispatched 10 | . . . . 1 6 3 . Investigation 4 | . . . . 1 3 . . Extermination . | . . . . . . . . Reinforcement 1 | . . . . . 1 . . Assault . | . . . . . . . . Garrison 5 | . . . . . 2 3 . Intercept . | . . . . . . . . Construction Impeded . | . . . . . . . . Haulers Reinforced . | . . . . . . . . Stealth | -11 -10 -10 -10 -9 -8 -7 -7 --------- Run | Scr Mat Min Exi Min Mat Fac Gar Distress Signals 5 | . 1 . . . 4 . . Communications Jammed . | . . . . . . . . Distress Signals . | . . . . . . . . Times Spotted 96 | . 16 10 . 3 41 11 15 Peak Tracking Total 9 | . 5 3 . 3 9 2 5 Tactical Retreats 10 | . 2 . . 1 3 . 4 Traps | -11 -10 -10 -10 -9 -8 -7 -7 ------- Run | Scr Mat Min Exi Min Mat Fac Gar Traps Triggered 4 | . . . . . 1 . 3 Indirectly . | . . . . . . . . Trap Hack Attempts . | . . . . . . . . Triggered . | . . . . . . . . Disarmed . | . . . . . . . . Reprogrammed 1 | . 1 . . . . . . Reused . | . . . . . . . . Traps Extracted . | . . . . . . . . Installed . | . . . . . . . . Triggered . | . . . . . . . . Machines | -11 -10 -10 -10 -9 -8 -7 -7 ---------- Run | Scr Mat Min Exi Min Mat Fac Gar Machines Disabled 8 | . 1 4 . . 1 1 1 Max in Single Turn 2 | . 1 2 . . 1 1 1 Garrison Relay 1 | . . . . . . . 1 Machines Sabotaged . | . . . . . . . . Garrisons Compromised . | . . . . . . . . Overloaded Fab Kills . | . . . . . . . . Fab Network Shutdowns . | . . . . . . . . Hacking | -11 -10 -10 -10 -9 -8 -7 -7 --------- Run | Scr Mat Min Exi Min Mat Fac Gar Machines Accessed 13 | . 7 1 1 1 2 1 . Terminals 8 | . 6 1 . 1 . . . Fabricators . | . . . . . . . . Repair Stations 2 | . 1 . . . 1 . . Recycling Units . | . . . . . . . . Scanalyzers . | . . . . . . . . Garrison Access 2 | . . . . . 1 1 . Total Hacks 61 | . 25 2 23 3 7 1 . Successful 43 | . 16 . 23 1 2 1 . Failed 17 | . 8 2 . 2 5 . . Catastrophic 5 | . 1 1 . 2 1 . . Database Lockouts 1 | . 1 . . . . . . Manual 21 | . 16 2 . 3 . . . Terminals 28 | . 23 2 . 3 . . . Fabricators . | . . . . . . . . Repair Stations 6 | . 2 . . . 4 . . Recycling Units . | . . . . . . . . Scanalyzers . | . . . . . . . . Garrison Access 4 | . . . . . 3 1 . Terminal Hacks 35 | . 11 . 23 1 . . . Record 23 | . . . 23 . . . . Robot Analysis 3 | . 3 . . . . . . Branch Access Points 2 | . 1 . . 1 . . . Terminal Index 1 | . 1 . . . . . . Alert Level 1 | . 1 . . . . . . Locate Traps 3 | . 3 . . . . . . Reprogram Traps 1 | . 1 . . . . . . Hauler Manifests 1 | . 1 . . . . . . Fabricator Hacks . | . . . . . . . . Repair Station Hacks 4 | . 2 . . . 2 . . Scan Component 3 | . 1 . . . 2 . . Repair 1 | . 1 . . . . . . Recycling Unit Hacks . | . . . . . . . . Scanalyzer . | . . . . . . . . Garrison Access Hacks 1 | . . . . . . 1 . Unlock Access 1 | . . . . . . 1 . Unauthorized Hacks 3 | . 3 . . . . . . Terminals 3 | . 3 . . . . . . Track 1 | . 1 . . . . . . Botnet 2 | . 2 . . . . . . Fabricators . | . . . . . . . . Repair Stations . | . . . . . . . . Recycling Units . | . . . . . . . . Scanalyzers . | . . . . . . . . Garrison Access . | . . . . . . . . Data Cores Recovered . | . . . . . . . . Used . | . . . . . . . . Hacking Detections 8 | . 4 1 . 1 2 . . Full Trace Events 3 | . . . . 1 2 . . Feedback Events . | . . . . . . . . Feedback Blocked . | . . . . . . . . Robot Schematics Acquired . | . . . . . . . . Robots Built . | . . . . . . . . Matter . | . . . . . . . . Time . | . . . . . . . . Total Robot Build Rating . | . . . . . . . . Part Schematics Acquired . | . . . . . . . . Parts Built . | . . . . . . . . Matter . | . . . . . . . . Time . | . . . . . . . . Total Part Build Rating . | . . . . . . . . Parts Repaired 1 | . 1 . . . . . . Time 26 | . 26 . . . . . . Parts Recycled . | . . . . . . . . Recycled Matter . | . . . . . . . . Retrieved Matter . | . . . . . . . . Retrieved Components . | . . . . . . . . Parts Scanalyzed . | . . . . . . . . Part Schematics Acquired . | . . . . . . . . Parts Damaged . | . . . . . . . . Bothacking | -11 -10 -10 -10 -9 -8 -7 -7 ------------ Run | Scr Mat Min Exi Min Mat Fac Gar Used RIF Installer . | . . . . . . . . Robots Hacked . | . . . . . . . . Non-combat . | . . . . . . . . Combat . | . . . . . . . . Robot Hacks Applied . | . . . . . . . . Relay Couplers Released 7 | . . . . . . 4 3 Machine Destruction 3 | . . . . . . . 3 Programmers 4 | . . . . . . 4 . Robots Rewired . | . . . . . . . . Allies Hacked . | . . . . . . . . Hacks Repelled . | . . . . . . . . Allies | -11 -10 -10 -10 -9 -8 -7 -7 -------- Run | Scr Mat Min Exi Min Mat Fac Gar Total Allies 3 | . . 1 . 2 . . . Largest Group 2 | . . 1 . 2 1 . . Highest-Rated Group 45 | . . 31 . 45 28 . . Highest-Rated Ally 31 | . . 31 . 31 28 . . Total Orders . | . . . . . . . . Ally Attacks 26 | . . 9 . 13 4 . . Total Damage 458 | . . 250 . 188 20 . . Kills 5 | . . 2 . 3 . . . Allies Corrupted . | . . . . . . . . Allies Melted . | . . . . . . . . Intel | -11 -10 -10 -10 -9 -8 -7 -7 ------- Run | Scr Mat Min Exi Min Mat Fac Gar Robot Analysis Total 3 | . 3 . . . . . . Derelict Logs Recovered 3 | . . 2 . 1 . . . Drone Launches . | . . . . . . . . Drone Recoveries . | . . . . . . . . Exploration | -11 -10 -10 -10 -9 -8 -7 -7 ------------- Run | Scr Mat Min Exi Min Mat Fac Gar Turns Passed 6191 | 109 1489 1021 380 823 1389 654 326 Spaces Moved 2711 | 63 729 536 220 345 441 226 151 Core 3 | 2 . . . . . 1 . Treads 1647 | 24 445 536 151 254 230 4 3 Legs 289 | 24 . . . . 117 148 . Wheels 772 | 13 284 . 69 91 94 73 148 Hover . | . . . . . . . . Flight . | . . . . . . . . Fastest Speed 50 | 50 110 160 160 160 120 123 113 Average Speed 179 | 125 166 162 164 218 206 215 122 Slowest Speed 2050 | 160 200 180 200 240 360 2050 280 Overloaded Moves . | . . . . . . . . Propulsion Burnouts . | . . . . . . . . Robots Hopped . | . . . . . . . . Cave-ins Triggered . | . . . . . . . . Exploration Rate (%) 40 | 4 86 81 49 62 26 4 15 Regions Visited 7 Branch Regions 3 Pre-discovered Areas 3 | . . 1 1 1 . . . Known Exits Taken 2 | . 1 . . . . 1 . Unknown Exits Taken 5 | 1 . 1 1 1 1 . . Scrap Searched 4 | . . 2 . 2 . . . Spaces Dug . | . . . . . . . . Terrain Destroyed 31 | . 10 5 . . . 9 7 Melee . | . . . . . . . . Projectile 9 | . . . . . . 9 . AOE 22 | . 10 5 . . . . 7 Terrain Rammed . | . . . . . . . . Walls Destroyed . | . . . . . . . . Machines Disabled . | . . . . . . . . Actions | -11 -10 -10 -10 -9 -8 -7 -7 --------- Run | Scr Mat Min Exi Min Mat Fac Gar Total 3538 | 85 893 633 239 405 710 331 242 Wait 255 | 2 65 29 . 51 51 23 34 Move 2704 | 62 728 535 219 344 440 225 151 Hop . | . . . . . . . . Pick Up 130 | 4 21 16 16 3 55 15 . Fast Attach 24 | 9 3 2 1 . 3 5 1 Attach 44 | . 4 8 . . 21 8 3 Detach 12 | 2 . 2 . . 4 4 . Swap 30 | 2 4 3 1 . 11 5 4 Drop 48 | 2 10 4 2 1 14 15 . Fire 267 | 2 58 34 . 6 111 31 25 Melee . | . . . . . . . . Ram . | . . . . . . . . Kick . | . . . . . . . . Crush . | . . . . . . . . Escape Stasis 24 | . . . . . . . 24 Rewire . | . . . . . . . . Trap . | . . . . . . . . Miscellaneous . | . . . . . . . . Route ------- -11/Scrapyard -10/Materials (discovered 4 exits: *Mat x2 / *Min x2) -10/Mines (discovered 2 exits: *Mat / *Exi) -10/Exiles -9/Mines -8/Materials -7/Factory -7/Garrison History --------- Turn | Location | Event 17 | -11/Scrapyard | Discovered new exit (range 15) 110 | -11/Scrapyard | Entered Materials 182 | -10/Materials | Identified exit to Mines 317 | -10/Materials | Build established: Mutant 438 | -10/Materials | Central database locked down 523 | -10/Materials | Discovered new exit (range 12) 848 | -10/Materials | Discovered new exit (range 14) 1191 | -10/Materials | Repaired Com. Wheel 1389 | -10/Materials | Lost 3 parts (1p1n1w) 1599 | -10/Materials | Entered Mines 1610 | -10/Mines | Core integrity fell below 50% 1706 | -10/Mines | Received a Mining Laser from a helpful Derelict 1840 | -10/Mines | Discovered new exit (range 15) 1918 | -10/Mines | Identified exit to Materials 2129 | -10/Mines | Found a hidden stash of uninstalled traps 2519 | -10/Mines | Received a Rocket Launcher from a helpful Derelict 2522 | -10/Mines | Learned Materials stockpile data 2524 | -10/Mines | Learned location of Zion (-7) 2612 | -10/Mines | Deemed a non-threat by the Exiles lab entrance 2614 | -10/Mines | Discovered new exit (range 5) 2620 | -10/Mines | Entered Exiles 2657 | -10/Exiles | Met 8R-AWN 2696 | -10/Exiles | Met EX-HEX 2758 | -10/Exiles | Met EX-DEC 2954 | -10/Exiles | Discovered new exit (range 10) 3000 | -10/Exiles | Entered Mines 3119 | -9/Mines | Build established: Hauler-Mutant 3173 | -9/Mines | Core integrity fell below 20% 3245 | -9/Mines | Learned Materials garrison access intel 3669 | -9/Mines | A weapon hastily lodged in a ceiling crevice suddenly fell to the ground 3763 | -9/Mines | Discovered new exit (range 14) 3786 | -9/Mines | Learned location of Storage (-7) 3823 | -9/Mines | Entered Materials 3823 | -8/Materials | Accompanied by 1 ally 3823 | -8/Materials | Evolved 4 slots: Propulsion x1, Utility x2, Weapon x1 3825 | -8/Materials | Loaded intel: 1 garrison access location 3828 | -8/Materials | Led the pair of lost Derelicts to an unsafe place 4016 | -8/Materials | Lost 6 parts (1p2n3w) 4183 | -8/Materials | Build established: Hauler-Gunner 4315 | -8/Materials | Garrison activated, responded to threat 4450 | -8/Materials | Core integrity fell below 50% 4476 | -8/Materials | Lost 6 parts (1p1n1u3w) 4584 | -8/Materials | Garrison activated, responded to threat 4645 | -8/Materials | Build established: Hauler-Mutant 5102 | -8/Materials | Discovered new exit (range 16) 5212 | -8/Materials | Entered Factory 5212 | -7/Factory | Evolved 2 slots: Power x1, Utility x1 5519 | -7/Factory | Build established: Hauler-Tank 5666 | -7/Factory | Core integrity fell below 50% 5719 | -7/Factory | Lost 3 parts (1p2w) 5865 | -7/Factory | Identified exit to Garrison 5866 | -7/Factory | Entered Garrison 5910 | -7/Garrison | Triggered checkpoint 5947 | -7/Garrison | Garrison Relay disabled 6056 | -7/Garrison | Triggered checkpoint 6122 | -7/Garrison | Core integrity fell below 20% 6193 | -7/Garrison | Core destroyed Last Messages --------------- 06183_ Overheating: Grenade Launcher damaged (-7). 06183_ Overheating: Humpback damaged (-22). 06183_ Overheating: Propulsion Shielding damaged (-4). 06183_ Overheating: Com. Wheel damaged (-5). 06183_ Wheel destroyed. 06185_ Power failure, Lgt. Nuclear Core shutdown. 06185_ Overheating: System interference. 06185_ Adv. Assault Cannon temporarily disabled. 06185_ Grenade Launcher temporarily disabled. 06186_ Penetrated by Slug. 06186_ Propulsion Shielding destroyed. 06186_ Com. Wheel destroyed. 06186_ Grenade Launcher destroyed. 06187_ Overheating: Matter decay (-3). 06188_ Overheating: Matter decay (-7). 06189_ Penetrated by Slug. 06191_ Overheating: System interference. 06191_ Adv. Assault Cannon temporarily disabled. 06191_ Acquired 31 matter. 06193_ Overheating: Core damaged (-112). Map ----- +----------------------------------------------------+ | ????????????????????###!!!####???????????????????? | | ????????????????????# #???????????????????? | | ????????????????????######## #???????????????????? | | ?????????????????????# #???# #???????????????????? | | ?????????????????????# #???# #???????????????????? | | ?????????????????????# #?### #???????????????????? | | ???????#####???????### ### #???????????????????? | | ???????# #???????# " #???????????????????? | | ???????# ############### #???????????????????? | | ???????# #???### #???????????????????? | | ???????# #?????#=#???????????????????? | | ???????############ ####### #???????????????????? | | ??????????????????# [ #???????????????????? | | ??????????????????# #########???????????????????? | | ??????????????????# #??# #??????????????????????? | | ??????????????????# #??# #??????????????????????? | | ??????????????????# #??# #??????????????????????? | | ??????????????????# #??# #??????????????????????? | | ??????????????????# +?? #??????????????????????? | | ??????????????????# #??# #??????????????????????? | | ??????????????????# #??# #??????????????????????? | | ??????????????????# #??# #??????????????????????? | | ??????????????????# *#### ##?#####""""## ??????? | | ??????????????????#= ## ! ## #?????? | | ??????????????????# != =h ?????? | | ??????????????????# =[ =@g ?????? | | ??????????????????##### ## ## ##?????????? | | ??????????????????????######? #???? #??????????? | | ?????????????????????????????? ???????????????? | | ?????????????????????????????? ?????????????? | | ??????????????????????????????? ???????????? | | ??????????????????????????????? ??????????? | | ????????????????????????????????## ##?????????? | | ?????????????????????????????????? #??????????? | | ??????????????????????????????????? ?????????? | | ???????????????????????????????????? ?????????? | | ????????????????????????????????????? ?????????? | | ?????????????????????????????????????"???????????? | | ?????????????????????????????????????????????????? | | ?????????????????????????????????????????????????? | | ?????????????????????????????????????????????????? | | ?????????????????????????????????????????????????? | | ?????????????????????????????????????????????????? | | ?????????????????????????????????????????????????? | | ?????????????????????????????????????????????????? | | ?????????????????????????????????????????????????? | | ?????????????????????????????????????????????????? | | ?????????????????????????????????????????????????? | | ?????????????????????????????????????????????????? | | ?????????????????????????????????????????????????? | +----------------------------------------------------+ Best States ------------- Heat Dissipation 34 Energy Generation 29 Energy Capacity 360 Matter Stores 300 Matter Capacity 300 Sight Range 16 Terrain Scan Range 14 Terrain Scan Density 10 Armor Coverage 750 Propulsion Shielding 33 Evasion (%) 44 Recoil Reduction 2 Item Schematics ----------------- None Robot Schematics ------------------ None Fabricated ------------ Nothing Alien Tech Used ----------------- None Achievements -------------- None Challenges ------------ None Game ------ Seed LinkedOpticalScanner Manual? 0 Play Time 01:01:50 Cumulative 34.7 hours Start 2020.10.28 @ 22:24:36 End 2020.10.28 @ 23:23:32 Sessions 1 Manual Loads 0 Difficulty Rogue Special Mode None Game No. 40 Rogue 40 Adventurer 0 Explorer 0 Win Type - Total 0 Types 0/0/0/0/0/0/0/0/0 Lore% 23 Gallery% 26 Achievement% 23 Wizard Run 0 Options --------- ASCII 0 Keyboard 1 Movement Numpad Keybinds 0 Fullscreen 1 Font 16/Dina Map View 76x50 Tactical HUD 1 Map Filters NONE Filters NONE Steam 1 RUN: ebc4348d-f69a-49fd-8cfc-392dfc00e645